fUSD/lending_fUSD_20251024
["ID","MTS","AMOUNT","RATE_DAILY","PERIOD"]
[392260445,1761287440897,-1115.0,0.00034637,2]
[392260446,1761287440906,-1117.0,0.00034705,2]
[392260447,1761287440916,-1114.0,0.0003492,7]
[392260448,1761287440925,-1117.0,0.00034954,7]
[392260449,1761287440935,-2159.3905957,0.00035,2]
[392260450,1761287440944,-172.4872023,0.00035,4]
[392260451,1761287440955,-1114.0,0.00035009,120]
[392260452,1761287440967,-1115.0,0.0003522,2]
[392260453,1761287440977,-168.0,0.00035277,2]
[392260454,1761287440986,-1115.0,0.00035313,120]
[392260455,1761287440995,-168.0,0.00035359,2]
[392260456,1761287441004,-1114.0,0.00035425,2]
[392260457,1761287441014,-1114.0,0.00035437,2]
[392260458,1761287441023,-168.0,0.00035445,2]
[392260459,1761287441034,-168.0,0.00035593,2]
[392260460,1761287441045,-476.35224409,0.00035755,2]
[392260461,1761287441054,-1115.0,0.00035968,7]
[392260462,1761287441064,-1114.0,0.00035969,2]
[392260463,1761287441073,-168.0,0.00036399,2]
[392260464,1761287441083,-1114.0,0.00036622,2]
[392260465,1761287441092,-1114.0,0.00036653,7]
[392260466,1761287441102,-579.67151606,0.00036687,9]
[392260467,1761287441112,-151.0,0.00036694,14]
[392260468,1761287441121,-168.0,0.00036697,2]
[392260469,1761287441131,-71885.41581662,0.00036787,2]
[392260470,1761287441145,-11254.43767157,0.00036787,2]
[392260471,1761287441155,-58122.0249387,0.00036787,2]
[392260472,1761287441165,-15769.30237295,0.00036787,2]
[392260473,1761287441178,-1863.46704841,0.00036787,2]
[392260474,1761287441190,-543.8414245,0.00036787,2]
[392260475,1761287441200,-1134.4968281,0.00036787,2]
[392260476,1761287441210,-2178.83218282,0.00036787,5]
[392260477,1761287441219,-408.62851779,0.00036787,2]
[392260478,1761287441229,-1504.94388959,0.00036787,2]
[392260479,1761287441239,-24743.74486505,0.00036787,2]
[392260480,1761287441249,-20572.93366995,0.00036787,2]
[392260481,1761287441258,-2475.34258008,0.00036787,2]
[392260482,1761287441268,-205.93061616,0.00036787,2]
[392260483,1761287441278,-876.45726366,0.00036787,2]
[392260484,1761287441288,-505.59527868,0.00036787,2]
[392260485,1761287441298,-287.09477558,0.00036787,2]
[392260486,1761287441308,-5773.42644789,0.00036787,2]
[392260487,1761287441318,-155.675,0.00036787,2]
[392260488,1761287441327,-1130.56257031,0.00036787,2]
[392260489,1761287441337,-4649.45781158,0.00036787,2]
[392260490,1761287441346,-1716.46822014,0.00036787,2]
[392260491,1761287441356,-1050.29054362,0.00036787,2]
[392260492,1761287441366,-12814.02737037,0.00036787,2]
[392260493,1761287441376,-160.39684713,0.00036787,2]
[392260494,1761287441385,-202.52369443,0.00036787,2]
[392260495,1761287441395,-464.96506262,0.00036787,120]
[392260496,1761287441404,-754.0018488,0.00036787,2]
[392260497,1761287441414,-4266.0,0.00036787,2]
[392260498,1761287441423,-1341.01260163,0.00036787,2]
[392260499,1761287441433,-151.57536982,0.00036787,2]
[392260500,1761287441443,-184.73256924,0.00036787,2]
[392260501,1761287441452,-3355.97683585,0.00036787,2]
[392260502,1761287441461,-168.0,0.00036852,2]
[392260503,1761287441471,-1114.0,0.00036993,7]
[392260504,1761287441481,-1114.0,0.00037093,2]
[392260505,1761287441492,-300.0,0.00037179,7]
[392260506,1761287441502,-150.0,0.00037208,4]
[392260507,1761287441511,-150.0,0.00037208,4]
[392260508,1761287441521,-150.0,0.00037208,4]
[392260509,1761287441531,-150.0,0.00037208,4]
[392260510,1761287441541,-150.0,0.00037208,4]
[392260511,1761287441551,-150.0,0.00037208,4]
[392260512,1761287441561,-150.0,0.00037208,4]
[392260513,1761287441570,-150.0,0.00037208,4]
[392260514,1761287441580,-150.0,0.00037208,4]
[392260515,1761287441590,-150.0,0.00037208,4]
[392260516,1761287441599,-1114.0,0.00037208,2]
[392260517,1761287441609,-150.0,0.00037451,7]
[392260518,1761287441619,-150.0,0.00037695,7]
[392260519,1761287441628,-500.0,0.00037781,2]
[392260520,1761287441638,-164.31,0.00037816,2]
[392260521,1761287441649,-150.0,0.00037857,2]
[392260522,1761287441659,-227.017991,0.00037857,2]
[392260523,1761287441669,-168.0,0.00037876,2]
[392260524,1761287441679,-1000.0,0.0003788,2]
[392260525,1761287441689,-150.0,0.00037897,7]
[392260526,1761287441699,-235.95,0.00037919,2]
[392260527,1761287441708,-150.0,0.00037938,7]
[392260528,1761287441718,-172.0,0.00038,30]
[392260529,1761287441727,-158.0,0.00038,30]
[392260530,1761287441737,-152.0,0.00038047,3]
[392260531,1761287441746,-150.0,0.00038181,7]
[392260532,1761287441756,-150.0,0.00038242,7]
[392260533,1761287441766,-168.0,0.0003826,2]
[392260534,1761287441776,-150.0,0.00038424,7]
[392260535,1761287441785,-150.0,0.00038586,7]
[392260536,1761287441796,-150.0,0.00038586,7]
[392260537,1761287441806,-150.0,0.00038586,7]
[392260538,1761287441816,-150.0,0.00038667,7]
[392260539,1761287441826,-2015.858,0.00038907,2]
[392260540,1761287441836,-3413.0,0.00038907,2]
[392260541,1761287441846,-2053.0,0.00038907,2]
[392260542,1761287441856,-819.0,0.00038907,2]
[392260543,1761287441865,-150.0,0.00038911,7]
[392260544,1761287441875,-300.0,0.00039,2]
[392260545,1761287441884,-2749.7387381,0.00039,120]
[392260546,1761287441894,-378.9,0.00039012,53]
[392260547,1761287441904,-172.61,0.00039012,2]
[392260548,1761287441914,-150.0,0.00039154,7]
[392260549,1761287441923,-1961.75208018,0.00039157,5]
[392260550,1761287441932,-150.0,0.00039275,7]
[392260551,1761287441942,-150.0,0.00039275,7]
[392260552,1761287441953,-150.0,0.00039275,7]
[392260553,1761287441965,-150.0,0.00039275,7]
[392260554,1761287441975,-150.0,0.00039275,7]
[392260555,1761287441984,-235.95,0.00039341,2]
[392260556,1761287441993,-150.0,0.00039397,7]
[392260557,1761287442005,-164.95,0.00039513,2]
[392260558,1761287442014,-150.0,0.0003964,7]
[392260559,1761287442024,-378.06,0.00039654,2]
[392260560,1761287442036,-150.0,0.00039883,7]
[392260561,1761287442054,-150.0,0.00039964,7]
[392260562,1761287442064,-150.0,0.00039964,7]
[392260563,1761287442073,-150.0,0.00039964,7]
[392260564,1761287442083,-970.87,0.0004,120]
[392260565,1761287442093,-150.0,0.00040127,7]
[392260566,1761287442103,-172.0,0.00040274,90]
[392260567,1761287442112,-158.0,0.00040274,90]
[392260568,1761287442122,-150.0,0.00040274,2]
[392260569,1761287442132,-150.0,0.00040274,2]
[392260570,1761287442142,-150.0,0.00040274,2]
[392260571,1761287442152,-150.0,0.00040274,2]
[392260572,1761287442162,-150.0,0.00040309,7]
[392260573,1761287442171,-696.48,0.00040356,2]
[392260574,1761287442181,-150.0,0.0004037,7]
[392260575,1761287442191,-1211.86,0.00040438,2]
[392260576,1761287442200,-150.0,0.00040438,2]
[392260577,1761287442210,-414.35,0.00040438,2]
[392260578,1761287442219,-377.62,0.00040438,2]
[392260579,1761287442229,-150.0,0.00040438,2]
[392260580,1761287442238,-176.35,0.00040438,2]
[392260581,1761287442248,-150.0,0.00040438,2]
[392260582,1761287442257,-414.35,0.00040438,2]
[392260583,1761287442268,-150.0,0.00040438,2]
[392260584,1761287442277,-176.35,0.00040438,2]
[392260585,1761287442286,-176.35,0.00040438,2]
[392260586,1761287442296,-150.0,0.00040438,2]
[392260587,1761287442306,-150.0,0.00040438,2]
[392260588,1761287442315,-168.52,0.00040438,2]
[392260589,1761287442325,-1095.06,0.00040438,2]
[392260590,1761287442335,-176.35,0.00040438,2]
[392260591,1761287442345,-414.35,0.00040438,2]
[392260592,1761287442355,-150.0,0.00040438,2]
[392260593,1761287442365,-183.46,0.00040588,14]
[392260595,1761287442375,-200.0,0.000406,14]
[392260597,1761287442385,-150.0,0.00040613,7]
[392260598,1761287442395,-150.0,0.00040653,7]
[392260600,1761287442404,-500.0,0.000407,14]
[392260602,1761287442414,-696.48,0.00040712,2]
[392260603,1761287442423,-696.48,0.00040712,2]
[392260604,1761287442432,-696.48,0.00040712,2]
[392260605,1761287442442,-475.59,0.00040712,2]
[392260606,1761287442451,-475.59,0.00040712,2]
[392260607,1761287442461,-696.48,0.00040712,2]
[392260608,1761287442470,-475.59,0.00040712,2]
[392260609,1761287442480,-475.59,0.00040712,2]
[392260610,1761287442489,-235.95,0.00040763,2]
[392260611,1761287442499,-700.0,0.000408,14]
[392260612,1761287442509,-150.0,0.00040856,7]
[392260613,1761287442519,-10027.13852308,0.000409,2]
[392260614,1761287442528,-1000.0,0.000409,14]
[392260615,1761287442538,-1425.0,0.00040945,2]
[392260616,1761287442547,-152.0,0.00040958,4]
[392260617,1761287442558,-1170.1922,0.0004098,7]
[392260618,1761287442567,-16662.7107,0.00040985,2]
[392260619,1761287442653,-1000.0,0.00040985,2]
[392260620,1761287442662,-3216.7871,0.00040985,2]
[392260621,1761287442671,-233.7175,0.00040985,2]
[392260622,1761287442681,-279.0283,0.00040985,2]
[392260623,1761287442691,-4059.8188,0.00040985,2]
[392260624,1761287442701,-2136.5821,0.00040985,2]
[392260625,1761287442710,-1093.55883404,0.00040986,2]
[392260626,1761287442720,-869.00446526,0.00040995,120]
[392260627,1761287442729,-21895.2507,0.00040995,60]
[392260628,1761287442738,-1425.0,0.00040998,2]
[392260629,1761287442747,-2000.0,0.00041,10]
[392260630,1761287442757,-1425.0,0.00041043,2]
[392260631,1761287442766,-298.06628152,0.00041069,14]
[392260632,1761287442775,-155.9196534,0.00041069,14]
[392260633,1761287442784,-514.36030528,0.00041073,5]
[392260634,1761287442794,-1337.74369,0.00041075,120]
[392260635,1761287442803,-1337.74369,0.00041075,120]
[392260636,1761287442812,-151.0,0.00041075,120]
[392260637,1761287442821,-1337.74369,0.00041075,120]
[392260638,1761287442830,-151.0,0.00041075,120]
[392260639,1761287442840,-1337.74369,0.00041075,120]
[392260640,1761287442849,-151.0,0.00041075,120]
[392260641,1761287442858,-151.0,0.00041075,120]
[392260642,1761287442867,-151.0,0.00041075,120]
[392260643,1761287442876,-151.0,0.00041075,120]
[392260644,1761287442885,-151.0,0.00041075,120]
[392260645,1761287442894,-402.34174,0.00041075,120]
[392260646,1761287442903,-402.34174,0.00041075,120]
[392260647,1761287442912,-151.0,0.00041075,120]
[392260648,1761287442921,-151.0,0.00041075,120]
[392260649,1761287442930,-385.184431,0.00041075,120]
[392260650,1761287442940,-402.34174,0.00041075,120]
[392260651,1761287442949,-993.408301,0.00041075,120]
[392260652,1761287442964,-151.0,0.00041075,120]
[392260653,1761287442973,-260.708385,0.00041075,120]
[392260654,1761287442982,-385.184431,0.00041075,120]
[392260655,1761287442991,-151.0,0.00041075,30]
[392260656,1761287443001,-993.408301,0.00041075,120]
[392260657,1761287443010,-260.708385,0.00041075,120]
[392260658,1761287443020,-402.34174,0.00041075,120]
[392260659,1761287443030,-151.0,0.00041075,120]
[392260660,1761287443040,-385.184431,0.00041075,120]
[392260661,1761287443050,-160.101597,0.00041075,30]
[392260662,1761287443059,-993.408301,0.00041075,120]
[392260663,1761287443068,-260.708385,0.00041075,120]
[392260664,1761287443080,-385.184431,0.00041075,120]
[392260665,1761287443090,-993.408301,0.00041075,120]
[392260666,1761287443099,-260.708385,0.00041075,120]
[392260667,1761287443108,-491.802855,0.00041075,120]
[392260668,1761287443118,-151.0,0.00041075,120]
[392260669,1761287443127,-491.802855,0.00041075,120]
[392260670,1761287443136,-491.802855,0.00041075,120]
[392260671,1761287443145,-151.0,0.00041075,120]
[392260672,1761287443154,-491.802855,0.00041075,120]
[392260673,1761287443163,-151.0,0.00041075,120]
[392260674,1761287443173,-151.0,0.00041075,120]
[392260675,1761287443186,-360.695978,0.00041075,120]
[392260677,1761287443195,-151.0,0.00041075,120]
[392260679,1761287443204,-360.695978,0.00041075,120]
[392260681,1761287443213,-151.0,0.00041075,120]
[392260683,1761287443222,-360.695978,0.00041075,120]
[392260685,1761287443231,-153.479678,0.00041075,120]
[392260687,1761287443240,-151.0,0.00041075,120]
[392260689,1761287443249,-360.695978,0.00041075,120]
[392260691,1761287443258,-215.215726,0.00041075,60]
[392260693,1761287443267,-151.0,0.00041075,120]
[392260695,1761287443276,-151.0,0.00041075,120]
[392260697,1761287443285,-603.310145,0.00041075,120]
[392260699,1761287443294,-603.310145,0.00041075,120]
[392260701,1761287443303,-151.0,0.00041075,120]
[392260703,1761287443312,-199.538505,0.00041075,120]
[392260705,1761287443321,-603.310145,0.00041075,120]
[392260707,1761287443330,-151.0,0.00041075,120]
[392260709,1761287443339,-199.538505,0.00041075,120]
[392260711,1761287443348,-603.310145,0.00041075,120]
[392260713,1761287443357,-199.538505,0.00041075,120]
[392260715,1761287443366,-151.0,0.00041075,120]
[392260717,1761287443375,-151.0,0.00041075,120]
[392260719,1761287443383,-199.538505,0.00041075,120]
[392260721,1761287443392,-151.0,0.00041075,120]
[392260723,1761287443401,-153.233246,0.00041075,120]
[392260725,1761287443410,-8052.742123,0.00041075,120]
[392260727,1761287443419,-272.198777,0.00041075,120]
[392260729,1761287443428,-151.0,0.00041075,120]
[392260731,1761287443437,-151.0,0.00041075,120]
[392260733,1761287443446,-180.099064,0.00041075,120]
[392260735,1761287443455,-8052.742123,0.00041075,120]
[392260737,1761287443464,-152.097625,0.00041075,120]
[392260739,1761287443473,-180.099064,0.00041075,120]
[392260741,1761287443481,-8052.742123,0.00041075,120]
[392260743,1761287443490,-151.0,0.00041075,120]
[392260745,1761287443499,-180.099064,0.00041075,120]
[392260747,1761287443508,-247.0,0.00041075,5]
[392260749,1761287443518,-90615.50396022,0.00041075,3]
[392260751,1761287443533,-73306.13112978,0.00041075,3]
[392260753,1761287443542,-800.17590622,0.00041075,3]
[392260755,1761287443550,-500.0,0.00041084,2]
[392260757,1761287443559,-150.0,0.00041085,7]
[392260759,1761287443569,-6949.30128524,0.00041085,3]
[392260763,1761287443592,-1254.38587563,0.00041085,3]
[392260765,1761287443605,-34094.00284133,0.00041085,3]
[392260767,1761287443618,-10497.71508596,0.00041085,3]
[392260773,1761287443659,-8052.742123,0.00041075,120]
[392260775,1761287443669,-85907.51691184,0.00041085,3]
[392260776,1761287443678,-4465.35136849,0.00041085,3]
[392260837,1761287444328,-1091.0,0.00040613,5]
[392260839,1761287444337,-151.0,0.00041075,120]
[392260841,1761287444347,-180.099064,0.00041075,120]
[392260843,1761287444356,-201.830473,0.00041075,120]
[392260844,1761287444365,-2348.16975584,0.00041085,3]
[392260845,1761287444376,-6789.46928137,0.00041085,3]
[392260846,1761287444385,-153.49,0.00041085,2]
[392260847,1761287444394,-202.47139032,0.00041085,7]
[392260848,1761287444403,-335.88,0.00041089,7]
[392260849,1761287444412,-500.0,0.00041094,2]
[392260850,1761287444421,-500.0,0.00041094,2]
[392260851,1761287444430,-500.0,0.00041094,2]
[392260852,1761287444439,-500.0,0.00041094,2]
[392260853,1761287444448,-500.0,0.00041094,2]
[392260854,1761287444457,-500.0,0.00041094,2]
[392260855,1761287444467,-153.40824967,0.00041095,2]
[392260856,1761287444476,-281.94824978,0.00041095,2]
[392260857,1761287444485,-500.0,0.00041095,30]
[392260858,1761287444494,-500.0,0.00041095,30]
[392260859,1761287444504,-500.0,0.00041095,30]
[392260860,1761287444513,-504.07716847,0.00041095,30]
[392260861,1761287444522,-500.0,0.00041095,30]
[392260862,1761287444531,-501.90970086,0.00041095,30]
[392260863,1761287444540,-500.0,0.00041095,30]
[392260864,1761287444549,-500.0,0.00041095,30]
[392260865,1761287444558,-500.0,0.00041095,30]
[392260866,1761287444567,-500.0,0.00041095,30]
[392260867,1761287444576,-500.0,0.00041095,30]
[392260868,1761287444585,-500.0,0.00041095,30]
[392260869,1761287444594,-500.0,0.00041095,30]
[392260870,1761287444604,-500.0,0.00041095,30]
[392260871,1761287444613,-500.0,0.00041095,30]
[392260872,1761287444622,-500.0,0.00041095,30]
[392260873,1761287444632,-500.0,0.00041095,30]
[392260874,1761287444641,-500.0,0.00041095,30]
[392260875,1761287444650,-500.0,0.00041095,30]
[392260876,1761287444659,-500.0,0.00041095,30]
[392260877,1761287444669,-500.0,0.00041095,30]
[392260878,1761287444678,-500.0,0.00041095,30]
[392260879,1761287444687,-500.0,0.00041095,30]
[392260880,1761287444696,-500.0,0.00041095,30]
[392260881,1761287444705,-500.0,0.00041095,30]
[392260882,1761287444714,-500.0,0.00041095,30]
[392260883,1761287444724,-500.0,0.00041095,30]
[392260884,1761287444733,-500.0,0.00041095,30]
[392260885,1761287444743,-271.35769333,0.00041095,30]
[392260886,1761287444804,-228.64230667,0.00041095,30]
[392260887,1761287444814,-81.11448555,0.00041095,120]
[392260901,1761287458961,-188.42107671,0.00017498,2]
[392260902,1761287461469,-215.85798077,0.00017498,2]
[392260904,1761287467783,3453.0,7.945e-05,2]
[392260906,1761287474082,-217.52061893,0.00017497,2]
[392260907,1761287476239,-282.47938107,0.00017497,2]
[392260908,1761287476266,-60.96711584,0.00017497,2]
[392260909,1761287478370,-222.72966956,0.00017497,2]
[392260912,1761287482468,-216.3032146,0.00017497,2]
[392260913,1761287482495,-63.944513,0.00017497,2]
[392260914,1761287484094,-295.88423633,0.00017497,2]
[392260915,1761287487966,-140.17125067,0.00017497,2]
[392260916,1761287487990,-209.20980398,0.00017497,2]
[392260917,1761287493982,-33.93156308,0.00017497,2]
[392260918,1761287494013,-216.44153125,0.00017497,2]
[392260919,1761287503524,-154.73463522,0.00017497,2]
[392260920,1761287503546,-94.56364827,0.00017497,2]
[392260936,1761287518524,-155.72635173,0.00017497,2]
[392260938,1761287518553,-133.69442098,0.00017497,2]
[392261007,1761287644730,300.0,4.274e-05,24]
[392261010,1761287708268,4217.798272,7.945e-05,2]
[392261013,1761287777484,-250.0,0.00017749,2]
[392261014,1761287777516,-195.0,0.00019247,2]
[392261015,1761287777545,-250.0,0.00019248,2]
[392261016,1761287777577,-175.96028634,0.00032776,2]
[392261017,1761287777607,-400.0,0.00032876,3]
[392261018,1761287777635,-1600.0,0.00032876,3]
[392261019,1761287777665,-153.0,0.00032877,30]
[392261020,1761287777697,-153.0,0.00032877,30]
[392261021,1761287777728,-153.0,0.00032877,30]
[392261022,1761287777758,-153.0,0.00032877,30]
[392261023,1761287777787,-153.0,0.00032877,30]
[392261024,1761287777816,-153.0,0.00032877,30]
[392261025,1761287777844,-153.0,0.00032877,30]
[392261026,1761287777873,-153.0,0.00032877,30]
[392261027,1761287777903,-153.0,0.00032877,30]
[392261028,1761287777935,-153.0,0.00032877,30]
[392261029,1761287777965,-153.0,0.00032877,30]
[392261030,1761287777997,-153.0,0.00032877,30]
[392261031,1761287778027,-153.0,0.00032877,30]
[392261032,1761287778059,-2528.83713209,0.00034907,2]
[392261052,1761287876957,2000.0,0.00035,2]
[392261053,1761287880102,500.0,0.00029499,2]
[392261057,1761287898310,236.49913822,0.00035,2]
[392261059,1761287899841,5485.90602492,0.00032656,2]
[392261385,1761288553082,-286.94056886,0.00029499,30]
[392261386,1761288553103,-290.39182045,0.00032449,120]
[392261387,1761288553124,-300.0,0.00032449,120]
[392261388,1761288553143,-182.58026006,0.00032554,2]
[392261389,1761288553165,-1600.0,0.00032654,3]
[392261390,1761288553187,-327.0,0.00032654,3]
[392261391,1761288553437,-400.0,0.00032654,2]
[392261392,1761288553462,-500.0,0.00032655,2]
[392261393,1761288553486,-500.0,0.00032655,2]
[392261394,1761288553510,-277.06067403,0.00032655,2]
[392261395,1761288553533,-50.0232646,0.00032656,2]
[392261406,1761288631833,-400.0,0.00032655,3]
[392261407,1761288631843,-19060.98974088,0.00032656,2]
[392261408,1761288631853,-312.2573928,0.00032656,2]
[392261409,1761288631863,-300.0,0.00033828,120]
[392261410,1761288631872,-3252.65962014,0.00034632,2]
[392261411,1761288631882,-151.0,0.00035,2]
[392261412,1761288631892,-300.0,0.00035075,120]
[392261413,1761288631902,-300.0,0.00035075,120]
[392261414,1761288631911,-410.72643508,0.00035075,120]
[392261415,1761288631921,-165.37,0.00035226,2]
[392261416,1761288631931,-476.35224409,0.00035756,2]
[392261417,1761288631940,-87.06508319,0.00035922,120]
[392261418,1761288631952,-212.93491681,0.00035922,120]
[392261419,1761288631962,-150.0,0.00036736,2]
[392261420,1761288631971,-500.0,0.00036737,15]
[392261421,1761288631981,-269.21870019,0.00036737,15]
[392261422,1761288631991,-322.26340219,0.00036737,15]
[392261423,1761288632002,-419.81347625,0.00036737,15]
[392261424,1761288632012,-20649.902086,0.00036738,90]
[392261425,1761288632021,-150.0,0.00036738,30]
[392261426,1761288632031,-150.0,0.00036738,120]
[392261427,1761288632041,-150.0,0.00036738,120]
[392261428,1761288632051,-150.0,0.00036738,120]
[392261429,1761288632060,-150.0,0.00036738,120]
[392261430,1761288632070,-150.0,0.00036738,120]
[392261431,1761288632079,-150.0,0.00036738,120]
[392261432,1761288632088,-417.422,0.00036741,46]
[392261433,1761288632097,-312.2573928,0.00036806,2]
[392261434,1761288632107,-182.58026005,0.00036922,2]
[392261435,1761288632116,-150.0,0.00036962,4]
[392261436,1761288632125,-150.0,0.00036962,4]
[392261437,1761288632135,-290.38939255,0.00036962,4]
[392261438,1761288632145,-150.0,0.00036962,4]
[392261439,1761288632154,-150.0,0.00036962,4]
[392261440,1761288632163,-150.0,0.00036962,4]
[392261441,1761288632174,-150.0,0.00036962,4]
[392261442,1761288632184,-150.0,0.00036962,4]
[392261443,1761288632194,-150.0,0.00036962,4]
[392261444,1761288632209,-150.0,0.00036962,4]
[392261445,1761288632225,-150.0,0.00036962,4]
[392261446,1761288632234,-150.0,0.00036962,4]
[392261447,1761288632244,-24596.9190304,0.00036989,2]
[392261448,1761288632253,-180.38,0.00037022,2]
[392261449,1761288632263,-2200.14052213,0.00037038,2]
[392261451,1761288632272,-300.0,0.00037151,3]
[392261452,1761288632282,-787.2192932,0.00037274,2]
[392261453,1761288632292,-287.80058223,0.00037857,2]
[392261454,1761288632302,-150.0,0.00038331,7]
[392261455,1761288632311,-312.76,0.00038597,120]
[392261456,1761288632321,-481.71,0.00038665,2]
[392261457,1761288632330,-300.0,0.00038685,14]
[392261458,1761288632340,-150.0,0.00039015,7]
[392261459,1761288632350,-192.74,0.00039134,2]
[392261460,1761288632361,-165.96,0.00039211,120]
[392261461,1761288632370,-115.00155215,0.00039603,3]
[392261462,1761288632384,-550.99844785,0.00039603,3]
[392261463,1761288632396,-200.0,0.00039616,2]
[392261464,1761288632407,-150.0,0.00039616,2]
[392261465,1761288632417,-54.65060578,0.00039616,2]
[392261466,1761288632673,-113.86939422,0.00039616,2]
[392261467,1761288632684,-547.6,0.00039616,2]
[392261468,1761288632694,-150.0,0.00039616,2]
[392261469,1761288632704,-407.29,0.00039616,2]
[392261470,1761288632714,-852.15,0.00039616,2]
[392261471,1761288632723,-168.52,0.00039616,2]
[392261472,1761288632733,-547.6,0.00039616,2]
[392261473,1761288632743,-176.05,0.00039616,2]
[392261474,1761288632753,-547.6,0.00039616,2]
[392261475,1761288632763,-168.52,0.00039616,2]
[392261476,1761288632772,-357.49,0.00039616,2]
[392261477,1761288632782,-547.6,0.00039616,2]
[392261478,1761288632791,-168.52,0.00039616,2]
[392261479,1761288632801,-168.52,0.00039616,2]
[392261480,1761288632811,-1091.13,0.00039616,2]
[392261481,1761288632820,-168.52,0.00039616,2]
[392261482,1761288632830,-168.52,0.00039616,2]
[392261483,1761288632840,-150.0,0.00039671,2]
[392261484,1761288632849,-150.0,0.000397,7]
[392261485,1761288632858,-205.29554291,0.00039726,2]
[392261486,1761288632868,-2981.29,0.0004,120]
[392261487,1761288632877,-4979.76729798,0.0004,4]
[392261488,1761288632890,-8565.40923258,0.0004,4]
[392261489,1761288632904,-1808.91392983,0.0004,4]
[392261490,1761288632915,-150.0,0.00040278,2]
[392261491,1761288632925,-209.22393635,0.00040437,30]
[392261492,1761288632934,-150.0,0.00040438,2]
[392261493,1761288632945,-500.0,0.00040438,2]
[392261494,1761288632955,-3689.56885882,0.00040485,2]
[392261495,1761288632969,-370.24994118,0.00040485,2]
[392261496,1761288632980,-117.33728219,0.00040493,2]
[392261497,1761288632999,-127.46363069,0.00040493,2]
[392261498,1761288633008,-500.0,0.00040493,2]
[392261499,1761288633019,-698.95577221,0.00040535,2]
[392261500,1761288633029,-500.0,0.00040548,2]
[392261501,1761288633039,-698.95577221,0.00040576,2]
[392261502,1761288633048,-489.75908399,0.00040585,30]
[392261503,1761288633058,-312.74212528,0.00040602,2]
[392261504,1761288633069,-187.25787472,0.00040602,2]
[392261505,1761288633079,-500.0,0.00040657,2]
[392261506,1761288633088,-4871.85016956,0.00040687,15]
[392261507,1761288633098,-4736.28166796,0.0004069,2]
[392261508,1761288633108,-247.8711639,0.00040712,2]
[392261509,1761288633118,-267.0,0.00040712,30]
[392261510,1761288633128,-200.0,0.00040766,20]
[392261511,1761288633137,-475.59,0.00040795,2]
[392261512,1761288633147,-475.59,0.00040795,2]
[392261513,1761288633156,-475.59,0.00040795,2]
[392261514,1761288633167,-1093.55883404,0.00040802,2]
[392261515,1761288633177,-1425.0,0.00040816,2]
[392261516,1761288633186,-1471.40588731,0.00040819,2]
[392261517,1761288633195,-1000.0,0.00040821,120]
[392261518,1761288633204,-1000.0,0.00040821,120]
[392261519,1761288633215,-180.06219327,0.00040821,120]
[392261520,1761288633224,-4871.85016955,0.00040832,15]
[392261521,1761288633234,-150.0,0.00040833,7]
[392261522,1761288633244,-354.48413907,0.00040845,7]
[392261523,1761288637851,-150.0,0.00039616,2]
[392261524,1761288637860,-2136.5821,0.00040485,2]
[392261525,1761288637871,-645.51586093,0.00040845,7]
[392261526,1761288637880,-1000.0,0.00040846,7]
[392261527,1761288637889,-226.1192878,0.0004085,2]
[392261545,1761288639864,-501.7756448,0.00039941,120]